[Event "Titled Tuesday Blitz February 21 Late 2023"]
[White "Karwowski, Kacper"]
[Black "Manu_ChessExcelsior"]
[WhiteFideId "1126032"]
[WhiteElo "2164"]
[BlackElo "2095"]
[Result "0-1"]
[Round "05"]
[TimeControl "180+2"]
[Date "2023.02.21"]
[WhiteClock "0:00:14"]
[BlackClock "0:00:43"]

1. e4 {[%clk 0:03:00]}  c5 {[%clk 0:02:58]} 2. Nf3 {[%clk 0:02:59]}  Nc6 {[%clk 0:02:58]} 3. Bb5 {[%clk 0:02:59]}  g6 {[%clk 0:02:56]} 4. Bxc6 {[%clk 0:02:58]}  dxc6 {[%clk 0:02:50]} 5. d3 {[%clk 0:02:59]}  Bg7 {[%clk 0:02:50]} 6. O-O {[%clk 0:02:59]}  Qc7 {[%clk 0:02:44]} 7. Nbd2 {[%clk 0:02:58]}  e5 {[%clk 0:02:44]} 8. Re1 {[%clk 0:02:57]}  Ne7 {[%clk 0:02:44]} 9. Nf1 {[%clk 0:02:57]}  h6 {[%clk 0:02:40]} 10. Ng3 {[%clk 0:02:54]}  Be6 {[%clk 0:02:40]} 11. b3 {[%clk 0:02:54]}  O-O-O {[%clk 0:02:16]} 12. Bb2 {[%clk 0:02:53]}  h5 {[%clk 0:02:02]} 13. h3 {[%clk 0:02:18]}  h4 {[%clk 0:02:01]} 14. Nf1 {[%clk 0:02:18]}  f6 {[%clk 0:01:57]} 15. Bc3 {[%clk 0:02:09]}  g5 {[%clk 0:01:54]} 16. Ne3 {[%clk 0:02:04]}  g4 {[%clk 0:01:43]} 17. hxg4 {[%clk 0:02:04]}  h3 {[%clk 0:01:43]} 18. gxh3 {[%clk 0:01:59]}  Rxh3 {[%clk 0:01:44]} 19. Kg2 {[%clk 0:01:59]}  Rdh8 {[%clk 0:01:43]} 20. Qd2 {[%clk 0:01:48]}  Bh6 {[%clk 0:01:38]} 21. Rh1 {[%clk 0:01:42]}  Bxe3 {[%clk 0:01:31]} 22. Qxe3 {[%clk 0:01:42]}  Bxg4 {[%clk 0:01:05]} 23. Rxh3 {[%clk 0:01:08]}  Bxh3+ {[%clk 0:01:04]} 24. Kg1 {[%clk 0:00:54]}  Ng6 {[%clk 0:01:04]} 25. Nh2 {[%clk 0:00:37]}  Nf4 {[%clk 0:01:01]} 26. f3 {[%clk 0:00:33]}  Qg7+ {[%clk 0:00:52]} 27. Ng4 {[%clk 0:00:14]}  Bxg4 {[%clk 0:00:49]} 28. fxg4 {[%clk 0:00:15]}  Qxg4+ {[%clk 0:00:49]} 29. Kf1 {[%clk 0:00:15]}  Rh1+ {[%clk 0:00:44]} 30. Kf2 {[%clk 0:00:14]}  Qg2# {[%clk 0:00:43]} 0-1


[Site "https://www.chess.com"]

[Event "Titled Tuesday Blitz February 21 Late 2023"]
[White "Pinheiro, Iung Alicio de O."]
[Black "Haszon, David"]
[WhiteFideId "2104350"]
[BlackFideId "733610"]
[WhiteElo "2306"]
[BlackElo "2264"]
[Result "0-1"]
[Round "05"]
[TimeControl "180+2"]
[Date "2023.02.21"]
[WhiteClock "0:00:01"]
[BlackClock "0:00:11"]

1. e4 {[%clk 0:02:54]}  c5 {[%clk 0:02:58]} 2. Nf3 {[%clk 0:02:53]}  Nc6 {[%clk 0:02:58]} 3. Bb5 {[%clk 0:02:51]}  g6 {[%clk 0:02:56]} 4. O-O {[%clk 0:02:47]}  Bg7 {[%clk 0:02:56]} 5. Re1 {[%clk 0:02:46]}  e5 {[%clk 0:02:56]} 6. a3 {[%clk 0:02:41]}  a6 {[%clk 0:02:51]} 7. Bc4 {[%clk 0:02:02]}  b5 {[%clk 0:02:42]} 8. Bd5 {[%clk 0:01:58]}  Nge7 {[%clk 0:02:42]} 9. b4 {[%clk 0:01:47]}  cxb4 {[%clk 0:02:13]} 10. axb4 {[%clk 0:01:45]}  O-O {[%clk 0:02:13]} 11. Nc3 {[%clk 0:01:28]}  Rb8 {[%clk 0:01:59]} 12. Rb1 {[%clk 0:01:24]}  Nxd5 {[%clk 0:01:50]} 13. Nxd5 {[%clk 0:01:23]}  Ne7 {[%clk 0:01:48]} 14. Nxe7+ {[%clk 0:01:05]}  Qxe7 {[%clk 0:01:48]} 15. d4 {[%clk 0:01:03]}  d6 {[%clk 0:01:42]} 16. h3 {[%clk 0:00:58]}  Bb7 {[%clk 0:01:38]} 17. Bg5 {[%clk 0:00:56]}  Qc7 {[%clk 0:01:28]} 18. Qd3 {[%clk 0:00:30]}  Rbc8 {[%clk 0:01:25]} 19. Re2 {[%clk 0:00:28]}  h6 {[%clk 0:01:16]} 20. Bd2 {[%clk 0:00:24]}  Qxc2 {[%clk 0:01:09]} 21. Qxc2 {[%clk 0:00:22]}  Rxc2 {[%clk 0:01:10]} 22. d5 {[%clk 0:00:22]}  Rfc8 {[%clk 0:01:09]} 23. Kf1 {[%clk 0:00:23]}  f5 {[%clk 0:01:04]} 24. exf5 {[%clk 0:00:19]}  gxf5 {[%clk 0:01:05]} 25. Nh4 {[%clk 0:00:20]}  Bxd5 {[%clk 0:00:58]} 26. Nxf5 {[%clk 0:00:18]}  Bc4 {[%clk 0:00:58]} 27. Ne7+ {[%clk 0:00:19]}  Kf7 {[%clk 0:00:56]} 28. Nxc8 {[%clk 0:00:19]}  Rxd2 {[%clk 0:00:57]} 29. Re1 {[%clk 0:00:15]}  Ke6 {[%clk 0:00:51]} 30. f3 {[%clk 0:00:15]}  Bf6 {[%clk 0:00:49]} 31. Nb6 {[%clk 0:00:15]}  Bd3 {[%clk 0:00:44]} 32. Kf2 {[%clk 0:00:14]}  Bh4+ {[%clk 0:00:39]} 33. g3 {[%clk 0:00:14]}  Bxe2 {[%clk 0:00:38]} 34. gxh4 {[%clk 0:00:13]}  Bc4+ {[%clk 0:00:31]} 35. Kg3 {[%clk 0:00:12]}  Rb2 {[%clk 0:00:21]} 36. Ra1 {[%clk 0:00:11]}  Ra2 {[%clk 0:00:20]} 37. Rc1 {[%clk 0:00:10]}  d5 {[%clk 0:00:17]} 38. Re1 {[%clk 0:00:10]}  a5 {[%clk 0:00:16]} 39. bxa5 {[%clk 0:00:10]}  Rxa5 {[%clk 0:00:17]} 40. f4 {[%clk 0:00:10]}  e4 {[%clk 0:00:17]} 41. Kg4 {[%clk 0:00:10]}  Ra3 {[%clk 0:00:15]} 42. f5+ {[%clk 0:00:10]}  Ke5 {[%clk 0:00:15]} 43. Nd7+ {[%clk 0:00:10]}  Kd6 {[%clk 0:00:15]} 44. Nf6 {[%clk 0:00:08]}  e3 {[%clk 0:00:14]} 45. Kf4 {[%clk 0:00:06]}  d4 {[%clk 0:00:14]} 46. Ng4 {[%clk 0:00:07]}  Ra2 {[%clk 0:00:14]} 47. f6 {[%clk 0:00:06]}  Ke6 {[%clk 0:00:13]} 48. Ke4 {[%clk 0:00:05]}  Rd2 {[%clk 0:00:11]} 49. Ra1 {[%clk 0:00:01]}  Bd5+ {[%clk 0:00:11]} 50. Kf4 {[%clk 0:00:01]}  e2 {[%clk 0:00:11]} 0-1


[Site "https://www.chess.com"]

[Event "Titled Tuesday Blitz February 21 Late 2023"]
[White "Magallanes, Rey Jomar"]
[Black "reevecanada"]
[WhiteFideId "5205948"]
[WhiteElo "2052"]
[BlackElo "2441"]
[Result "0-1"]
[Round "05"]
[TimeControl "180+2"]
[Date "2023.02.21"]
[WhiteClock "0:02:09"]
[BlackClock "0:02:11"]

1. e4 {[%clk 0:03:00]}  c5 {[%clk 0:02:57]} 2. Nf3 {[%clk 0:03:00]}  d6 {[%clk 0:02:56]} 3. d4 {[%clk 0:03:00]}  cxd4 {[%clk 0:02:56]} 4. Nxd4 {[%clk 0:03:01]}  Nf6 {[%clk 0:02:55]} 5. Nc3 {[%clk 0:03:01]}  a6 {[%clk 0:02:56]} 6. Be2 {[%clk 0:03:00]}  e5 {[%clk 0:02:55]} 7. Nb3 {[%clk 0:03:00]}  Be6 {[%clk 0:02:55]} 8. O-O {[%clk 0:03:00]}  Be7 {[%clk 0:02:55]} 9. Qd3 {[%clk 0:03:00]}  O-O {[%clk 0:02:54]} 10. Bd2 {[%clk 0:03:00]}  d5 {[%clk 0:02:53]} 11. exd5 {[%clk 0:02:59]}  Nxd5 {[%clk 0:02:53]} 12. Nxd5 {[%clk 0:02:59]}  Qxd5 {[%clk 0:02:52]} 13. Qxd5 {[%clk 0:02:59]}  Bxd5 {[%clk 0:02:52]} 14. c4 {[%clk 0:02:59]}  Be6 {[%clk 0:02:52]} 15. Na5 {[%clk 0:02:58]}  Nc6 {[%clk 0:02:52]} 16. Nxc6 {[%clk 0:02:44]}  bxc6 {[%clk 0:02:50]} 17. b3 {[%clk 0:02:44]}  Rfd8 {[%clk 0:02:48]} 18. Bc3 {[%clk 0:02:43]}  f6 {[%clk 0:02:47]} 19. Bf3 {[%clk 0:02:43]}  Rac8 {[%clk 0:02:45]} 20. Rad1 {[%clk 0:02:43]}  Kf7 {[%clk 0:02:45]} 21. Ba5 {[%clk 0:02:43]}  Rxd1 {[%clk 0:02:43]} 22. Rxd1 {[%clk 0:02:42]}  f5 {[%clk 0:02:39]} 23. Bc3 {[%clk 0:02:37]}  e4 {[%clk 0:02:38]} 24. Be2 {[%clk 0:02:38]}  Bc5 {[%clk 0:02:36]} 25. b4 {[%clk 0:02:37]}  Be7 {[%clk 0:02:34]} 26. a3 {[%clk 0:02:36]}  c5 {[%clk 0:02:31]} 27. b5 {[%clk 0:02:35]}  axb5 {[%clk 0:02:31]} 28. cxb5 {[%clk 0:02:36]}  Ra8 {[%clk 0:02:31]} 29. Bb2 {[%clk 0:02:32]}  c4 {[%clk 0:02:27]} 30. Rc1 {[%clk 0:02:30]}  Bxa3 {[%clk 0:02:24]} 31. Bxa3 {[%clk 0:02:26]}  Rxa3 {[%clk 0:02:25]} 32. f3 {[%clk 0:02:19]}  e3 {[%clk 0:02:24]} 33. b6 {[%clk 0:02:15]}  Rb3 {[%clk 0:02:20]} 34. g3 {[%clk 0:02:09]}  Rxb6 {[%clk 0:02:17]} 35. Bxc4 {[%clk 0:02:08]}  Bxc4 {[%clk 0:02:16]} 36. Rxc4 {[%clk 0:02:09]}  Rb1+ {[%clk 0:02:16]} 37. Kg2 {[%clk 0:02:10]}  e2 {[%clk 0:02:16]} 38. Rc7+ {[%clk 0:02:10]}  Ke8 {[%clk 0:02:14]} 39. Rc8+ {[%clk 0:02:08]}  Kd7 {[%clk 0:02:14]} 40. Rg8 {[%clk 0:02:07]}  e1=Q {[%clk 0:02:12]} 41. Rxg7+ {[%clk 0:02:08]}  Ke6 {[%clk 0:02:12]} 42. Rxh7 {[%clk 0:02:09]}  Qf1# {[%clk 0:02:11]} 0-1


[Site "https://www.chess.com"]

[Event "Titled Tuesday Blitz February 21 Late 2023"]
[White "Eckert, Doug"]
[Black "mohsengabr2002"]
[WhiteFideId "2001993"]
[WhiteElo "2075"]
[BlackElo "2349"]
[Result "0-1"]
[Round "05"]
[TimeControl "180+2"]
[Date "2023.02.21"]
[WhiteClock "0:00:15"]
[BlackClock "0:00:21"]

1. d4 {[%clk 0:02:58]}  g6 {[%clk 0:02:59]} 2. c4 {[%clk 0:02:57]}  f6 {[%clk 0:02:59]} 3. e4 {[%clk 0:02:56]}  e6 {[%clk 0:03:00]} 4. Nc3 {[%clk 0:02:56]}  Nh6 {[%clk 0:03:01]} 5. h4 {[%clk 0:02:55]}  Nf7 {[%clk 0:03:02]} 6. h5 {[%clk 0:02:56]}  g5 {[%clk 0:03:02]} 7. f4 {[%clk 0:02:53]}  h6 {[%clk 0:03:02]} 8. Bd3 {[%clk 0:02:47]}  Bg7 {[%clk 0:03:02]} 9. Nf3 {[%clk 0:02:41]}  O-O {[%clk 0:03:02]} 10. e5 {[%clk 0:02:38]}  g4 {[%clk 0:02:46]} 11. Nh4 {[%clk 0:02:37]}  f5 {[%clk 0:02:46]} 12. Be3 {[%clk 0:02:27]}  d6 {[%clk 0:02:45]} 13. Qe2 {[%clk 0:02:15]}  dxe5 {[%clk 0:02:41]} 14. dxe5 {[%clk 0:02:13]}  Nc6 {[%clk 0:02:40]} 15. O-O-O {[%clk 0:02:04]}  Bd7 {[%clk 0:02:36]} 16. c5 {[%clk 0:01:57]}  Re8 {[%clk 0:02:28]} 17. Bc4 {[%clk 0:01:49]}  Qc8 {[%clk 0:02:25]} 18. a3 {[%clk 0:01:41]}  b6 {[%clk 0:02:25]} 19. Ba2 {[%clk 0:01:37]}  a5 {[%clk 0:02:21]} 20. Qc4 {[%clk 0:01:36]}  Bf8 {[%clk 0:02:16]} 21. Nxf5 {[%clk 0:01:33]}  bxc5 {[%clk 0:01:53]} 22. Nh4 {[%clk 0:01:29]}  Nd4 {[%clk 0:01:49]} 23. Bxd4 {[%clk 0:01:20]}  cxd4 {[%clk 0:01:50]} 24. Qxd4 {[%clk 0:01:20]}  Bc6 {[%clk 0:01:44]} 25. Qd3 {[%clk 0:01:19]}  Qa6 {[%clk 0:01:36]} 26. Qxa6 {[%clk 0:01:10]}  Rxa6 {[%clk 0:01:36]} 27. Rhe1 {[%clk 0:01:10]}  Be7 {[%clk 0:01:20]} 28. Ng6 {[%clk 0:01:01]}  Bc5 {[%clk 0:01:20]} 29. g3 {[%clk 0:00:57]}  Bf2 {[%clk 0:01:19]} 30. Rf1 {[%clk 0:00:53]}  Bxg3 {[%clk 0:01:19]} 31. Rg1 {[%clk 0:00:50]}  Bf2 {[%clk 0:01:14]} 32. Rxg4 {[%clk 0:00:50]}  Bf3 {[%clk 0:01:08]} 33. Rdg1 {[%clk 0:00:42]}  Bxg1 {[%clk 0:01:05]} 34. Rxg1 {[%clk 0:00:41]}  Bxh5 {[%clk 0:01:00]} 35. f5 {[%clk 0:00:40]}  Bxg6 {[%clk 0:00:50]} 36. Rxg6+ {[%clk 0:00:40]}  Kh7 {[%clk 0:00:46]} 37. Bxe6 {[%clk 0:00:37]}  Nxe5 {[%clk 0:00:40]} 38. Rf6 {[%clk 0:00:32]}  Kg7 {[%clk 0:00:34]} 39. Ne4 {[%clk 0:00:29]}  Re7 {[%clk 0:00:28]} 40. Kd2 {[%clk 0:00:29]}  Rb6 {[%clk 0:00:26]} 41. Kc3 {[%clk 0:00:27]}  a4 {[%clk 0:00:23]} 42. Kd4 {[%clk 0:00:19]}  Rb5 {[%clk 0:00:22]} 43. Nc5 {[%clk 0:00:16]}  Rxc5 {[%clk 0:00:21]} 44. Kxc5 {[%clk 0:00:15]}  Kxf6 {[%clk 0:00:21]} 0-1


[Site "https://www.chess.com"]

[Event "Titled Tuesday Blitz February 21 Late 2023"]
[White "Roman, Rodrigo"]
[Black "Mazurkiewicz, Michal"]
[WhiteFideId "3701220"]
[BlackFideId "1124943"]
[WhiteElo "2058"]
[BlackElo "2145"]
[Result "0-1"]
[Round "05"]
[TimeControl "180+2"]
[Date "2023.02.21"]
[WhiteClock "0:00:50"]
[BlackClock "0:00:55"]

1. e4 {[%clk 0:02:51]}  d6 {[%clk 0:02:59]} 2. Nf3 {[%clk 0:02:49]}  Nf6 {[%clk 0:03:00]} 3. Nc3 {[%clk 0:02:49]}  c6 {[%clk 0:03:00]} 4. d4 {[%clk 0:02:49]}  Bg4 {[%clk 0:02:59]} 5. h3 {[%clk 0:02:48]}  Bh5 {[%clk 0:02:59]} 6. Be2 {[%clk 0:02:47]}  e6 {[%clk 0:02:59]} 7. Be3 {[%clk 0:02:41]}  d5 {[%clk 0:02:59]} 8. e5 {[%clk 0:02:40]}  Nfd7 {[%clk 0:03:00]} 9. g4 {[%clk 0:02:33]}  Bg6 {[%clk 0:02:56]} 10. Bd3 {[%clk 0:02:33]}  c5 {[%clk 0:02:56]} 11. Bxg6 {[%clk 0:02:33]}  hxg6 {[%clk 0:02:57]} 12. dxc5 {[%clk 0:02:29]}  Nc6 {[%clk 0:02:55]} 13. Nd4 {[%clk 0:02:23]}  Bxc5 {[%clk 0:02:46]} 14. Nxc6 {[%clk 0:02:19]}  bxc6 {[%clk 0:02:47]} 15. Bxc5 {[%clk 0:02:19]}  Nxc5 {[%clk 0:02:47]} 16. Qd4 {[%clk 0:02:19]}  Qb6 {[%clk 0:02:46]} 17. O-O-O {[%clk 0:02:14]}  Rb8 {[%clk 0:02:44]} 18. b3 {[%clk 0:02:14]}  a5 {[%clk 0:02:12]} 19. f4 {[%clk 0:02:12]}  O-O {[%clk 0:02:06]} 20. h4 {[%clk 0:01:50]}  a4 {[%clk 0:01:51]} 21. Nxa4 {[%clk 0:01:35]}  Nxa4 {[%clk 0:01:51]} 22. Qxa4 {[%clk 0:01:35]}  Ra8 {[%clk 0:01:51]} 23. Qd4 {[%clk 0:01:35]}  c5 {[%clk 0:01:48]} 24. Qb2 {[%clk 0:01:34]}  c4 {[%clk 0:01:35]} 25. Rh3 {[%clk 0:01:31]}  Qf2 {[%clk 0:01:06]} 26. Qd4 {[%clk 0:01:21]}  Qg2 {[%clk 0:01:06]} 27. Rc3 {[%clk 0:01:05]}  Rxa2 {[%clk 0:00:57]} 28. Kb1 {[%clk 0:00:57]}  Rfa8 {[%clk 0:00:56]} 29. Re3 {[%clk 0:00:50]}  Qxc2# {[%clk 0:00:55]} 0-1


[Site "https://www.chess.com"]

[Event "Titled Tuesday Blitz February 21 Late 2023"]
[White "ArturoCaceres"]
[Black "Stachanczyk, Jacek"]
[BlackFideId "1116657"]
[WhiteElo "2405"]
[BlackElo "2147"]
[Result "0-1"]
[Round "05"]
[TimeControl "180+2"]
[Date "2023.02.21"]
[WhiteClock "0:00:01"]
[BlackClock "0:00:43"]

1. Nf3 {[%clk 0:03:00]}  Nf6 {[%clk 0:02:58]} 2. b3 {[%clk 0:02:57]}  d5 {[%clk 0:02:57]} 3. Bb2 {[%clk 0:02:57]}  c5 {[%clk 0:02:56]} 4. e3 {[%clk 0:02:57]}  Nc6 {[%clk 0:02:56]} 5. Bb5 {[%clk 0:02:58]}  Qc7 {[%clk 0:02:54]} 6. O-O {[%clk 0:02:57]}  b6 {[%clk 0:02:52]} 7. d4 {[%clk 0:02:56]}  Bb7 {[%clk 0:02:51]} 8. dxc5 {[%clk 0:02:57]}  bxc5 {[%clk 0:02:51]} 9. c4 {[%clk 0:02:57]}  dxc4 {[%clk 0:02:34]} 10. Bxc4 {[%clk 0:02:56]}  e6 {[%clk 0:02:33]} 11. Nc3 {[%clk 0:02:54]}  Be7 {[%clk 0:02:30]} 12. Nb5 {[%clk 0:02:35]}  Qb8 {[%clk 0:02:28]} 13. Bxf6 {[%clk 0:02:28]}  Bxf6 {[%clk 0:02:16]} 14. Nd6+ {[%clk 0:02:27]}  Ke7 {[%clk 0:02:16]} 15. Nxf7 {[%clk 0:01:55]}  Bxa1 {[%clk 0:01:54]} 16. Qxa1 {[%clk 0:01:39]}  Rg8 {[%clk 0:01:26]} 17. N7g5 {[%clk 0:01:31]}  Nd8 {[%clk 0:01:16]} 18. Rd1 {[%clk 0:01:14]}  h6 {[%clk 0:01:11]} 19. Ne5 {[%clk 0:00:24]}  hxg5 {[%clk 0:01:07]} 20. Rd7+ {[%clk 0:00:24]}  Ke8 {[%clk 0:01:04]} 21. Bb5 {[%clk 0:00:05]}  Bc6 {[%clk 0:00:51]} 22. Nxc6 {[%clk 0:00:03]}  Qxb5 {[%clk 0:00:50]} 23. Re7+ {[%clk 0:00:03]}  Kf8 {[%clk 0:00:48]} 24. Qb1 {[%clk 0:00:01]}  Qxc6 {[%clk 0:00:43]} 0-1


[Site "https://www.chess.com"]

[Event "Titled Tuesday Blitz February 21 Late 2023"]
[White "Liu, Casper"]
[Black "Jimenez Garcia, Emmanuel"]
[WhiteFideId "1454153"]
[BlackFideId "6504779"]
[WhiteElo "2278"]
[BlackElo "2410"]
[Result "0-1"]
[Round "05"]
[TimeControl "180+2"]
[Date "2023.02.21"]
[WhiteClock "0:00:37"]
[BlackClock "0:01:02"]

1. d4 {[%clk 0:02:57]}  b6 {[%clk 0:02:57]} 2. c4 {[%clk 0:02:56]}  Bb7 {[%clk 0:02:57]} 3. Nf3 {[%clk 0:02:56]}  Nf6 {[%clk 0:02:56]} 4. Nc3 {[%clk 0:02:57]}  e6 {[%clk 0:02:52]} 5. g3 {[%clk 0:02:53]}  Bb4 {[%clk 0:02:50]} 6. Bg2 {[%clk 0:02:53]}  Bxc3+ {[%clk 0:02:48]} 7. bxc3 {[%clk 0:02:54]}  O-O {[%clk 0:02:49]} 8. O-O {[%clk 0:02:53]}  d6 {[%clk 0:02:49]} 9. Bg5 {[%clk 0:02:52]}  Nbd7 {[%clk 0:02:48]} 10. Nd2 {[%clk 0:02:52]}  Bxg2 {[%clk 0:02:48]} 11. Kxg2 {[%clk 0:02:53]}  h6 {[%clk 0:02:48]} 12. Bxf6 {[%clk 0:02:49]}  Nxf6 {[%clk 0:02:48]} 13. e4 {[%clk 0:02:49]}  e5 {[%clk 0:02:42]} 14. Re1 {[%clk 0:02:44]}  Qe8 {[%clk 0:02:38]} 15. Qc2 {[%clk 0:02:36]}  Qc6 {[%clk 0:02:38]} 16. f4 {[%clk 0:02:26]}  Rfe8 {[%clk 0:02:36]} 17. fxe5 {[%clk 0:02:24]}  dxe5 {[%clk 0:02:36]} 18. d5 {[%clk 0:02:23]}  Qd6 {[%clk 0:02:20]} 19. h3 {[%clk 0:02:08]}  c6 {[%clk 0:02:19]} 20. Qb3 {[%clk 0:02:03]}  Rec8 {[%clk 0:02:16]} 21. Qb4 {[%clk 0:01:58]}  Ne8 {[%clk 0:02:05]} 22. Nf3 {[%clk 0:01:54]}  f6 {[%clk 0:02:02]} 23. Nh4 {[%clk 0:01:52]}  cxd5 {[%clk 0:01:53]} 24. cxd5 {[%clk 0:01:48]}  Qxb4 {[%clk 0:01:51]} 25. cxb4 {[%clk 0:01:45]}  Rc2+ {[%clk 0:01:52]} 26. Kg1 {[%clk 0:01:41]}  Nd6 {[%clk 0:01:47]} 27. a3 {[%clk 0:01:31]}  Rac8 {[%clk 0:01:45]} 28. Nf5 {[%clk 0:01:24]}  Nxf5 {[%clk 0:01:40]} 29. exf5 {[%clk 0:01:25]}  Kf7 {[%clk 0:01:32]} 30. d6 {[%clk 0:01:23]}  Ke8 {[%clk 0:01:31]} 31. Red1 {[%clk 0:01:14]}  Kd7 {[%clk 0:01:27]} 32. b5 {[%clk 0:01:14]}  R8c3 {[%clk 0:01:27]} 33. g4 {[%clk 0:01:08]}  Rg3+ {[%clk 0:01:26]} 34. Kf1 {[%clk 0:01:01]}  Rxh3 {[%clk 0:01:27]} 35. Kg1 {[%clk 0:00:55]}  Rg3+ {[%clk 0:01:16]} 36. Kh1 {[%clk 0:00:56]}  Rxg4 {[%clk 0:01:09]} 37. a4 {[%clk 0:00:56]}  Rd4 {[%clk 0:01:06]} 38. Rxd4 {[%clk 0:00:43]}  exd4 {[%clk 0:01:07]} 39. a5 {[%clk 0:00:43]}  d3 {[%clk 0:01:05]} 40. axb6 {[%clk 0:00:38]}  axb6 {[%clk 0:01:06]} 41. Ra7+ {[%clk 0:00:37]}  Kxd6 {[%clk 0:01:02]} 0-1


[Site "https://www.chess.com"]

[Event "Titled Tuesday Blitz February 21 Late 2023"]
[White "Kalajzic, Ivan"]
[Black "Zampronha, Wladimir Camilo"]
[WhiteFideId "14506378"]
[BlackFideId "2103087"]
[WhiteElo "2062"]
[BlackElo "2176"]
[Result "0-1"]
[Round "05"]
[TimeControl "180+2"]
[Date "2023.02.21"]
[WhiteClock "0:00:01"]
[BlackClock "0:00:17"]

1. b3 {[%clk 0:02:59]}  e5 {[%clk 0:02:59]} 2. Bb2 {[%clk 0:02:59]}  Nc6 {[%clk 0:02:59]} 3. e3 {[%clk 0:02:59]}  d5 {[%clk 0:03:00]} 4. Bb5 {[%clk 0:02:59]}  Bd6 {[%clk 0:02:59]} 5. f4 {[%clk 0:02:59]}  Qh4+ {[%clk 0:02:53]} 6. g3 {[%clk 0:02:58]}  Qe7 {[%clk 0:02:54]} 7. Nf3 {[%clk 0:02:58]}  f6 {[%clk 0:02:53]} 8. O-O {[%clk 0:02:41]}  e4 {[%clk 0:02:48]} 9. Nd4 {[%clk 0:02:39]}  Bd7 {[%clk 0:02:46]} 10. Nxc6 {[%clk 0:02:14]}  bxc6 {[%clk 0:02:46]} 11. Be2 {[%clk 0:02:13]}  Nh6 {[%clk 0:02:44]} 12. a4 {[%clk 0:02:00]}  O-O {[%clk 0:02:42]} 13. Ba3 {[%clk 0:02:00]}  c5 {[%clk 0:02:29]} 14. Nc3 {[%clk 0:01:53]}  c6 {[%clk 0:02:28]} 15. Qe1 {[%clk 0:01:33]}  Rae8 {[%clk 0:02:22]} 16. Nd1 {[%clk 0:01:31]}  Bh3 {[%clk 0:02:15]} 17. Rf2 {[%clk 0:01:31]}  Ng4 {[%clk 0:02:15]} 18. Bxg4 {[%clk 0:01:27]}  Bxg4 {[%clk 0:02:16]} 19. Qf1 {[%clk 0:01:22]}  Kh8 {[%clk 0:01:42]} 20. h3 {[%clk 0:01:21]}  Bc8 {[%clk 0:01:39]} 21. Rh2 {[%clk 0:01:19]}  d4 {[%clk 0:01:35]} 22. Nf2 {[%clk 0:01:16]}  f5 {[%clk 0:01:27]} 23. Qc4 {[%clk 0:01:08]}  Be6 {[%clk 0:01:21]} 24. Qa6 {[%clk 0:01:08]}  Qc7 {[%clk 0:01:08]} 25. Kh1 {[%clk 0:01:01]}  Rb8 {[%clk 0:01:06]} 26. Rg1 {[%clk 0:00:59]}  d3 {[%clk 0:00:59]} 27. cxd3 {[%clk 0:00:51]}  Rxb3 {[%clk 0:00:58]} 28. Bc1 {[%clk 0:00:45]}  exd3 {[%clk 0:00:52]} 29. Nxd3 {[%clk 0:00:43]}  Qb6 {[%clk 0:00:48]} 30. Qxb6 {[%clk 0:00:42]}  axb6 {[%clk 0:00:49]} 31. g4 {[%clk 0:00:37]}  Rxd3 {[%clk 0:00:48]} 32. gxf5 {[%clk 0:00:37]}  Bd5+ {[%clk 0:00:45]} 33. Rhg2 {[%clk 0:00:36]}  Rxf5 {[%clk 0:00:43]} 34. Bb2 {[%clk 0:00:36]}  Rf7 {[%clk 0:00:39]} 35. Kh2 {[%clk 0:00:34]}  Bxg2 {[%clk 0:00:38]} 36. Rxg2 {[%clk 0:00:35]}  Rb3 {[%clk 0:00:37]} 37. Bc3 {[%clk 0:00:34]}  Rxc3 {[%clk 0:00:36]} 38. dxc3 {[%clk 0:00:34]}  Ra7 {[%clk 0:00:34]} 39. Rd2 {[%clk 0:00:32]}  Bf8 {[%clk 0:00:33]} 40. Rd8 {[%clk 0:00:28]}  Kg8 {[%clk 0:00:34]} 41. Rb8 {[%clk 0:00:28]}  Rxa4 {[%clk 0:00:32]} 42. Rxb6 {[%clk 0:00:28]}  Rc4 {[%clk 0:00:31]} 43. Kg3 {[%clk 0:00:23]}  Rxc3 {[%clk 0:00:31]} 44. Kf3 {[%clk 0:00:23]}  Rc1 {[%clk 0:00:31]} 45. Rxc6 {[%clk 0:00:23]}  c4 {[%clk 0:00:31]} 46. Ke2 {[%clk 0:00:20]}  Rh1 {[%clk 0:00:30]} 47. Rxc4 {[%clk 0:00:19]}  Rxh3 {[%clk 0:00:30]} 48. e4 {[%clk 0:00:19]}  Rh4 {[%clk 0:00:30]} 49. Kf3 {[%clk 0:00:19]}  Rh3+ {[%clk 0:00:30]} 50. Kg4 {[%clk 0:00:19]}  Rh1 {[%clk 0:00:31]} 51. e5 {[%clk 0:00:19]}  Re1 {[%clk 0:00:28]} 52. Rc7 {[%clk 0:00:19]}  g6 {[%clk 0:00:24]} 53. Kg5 {[%clk 0:00:17]}  Ra1 {[%clk 0:00:23]} 54. f5 {[%clk 0:00:16]}  Rg1+ {[%clk 0:00:22]} 55. Kf6 {[%clk 0:00:13]}  Rf1 {[%clk 0:00:20]} 56. Rc8 {[%clk 0:00:05]}  Rxf5+ {[%clk 0:00:20]} 57. Ke6 {[%clk 0:00:05]}  h5 {[%clk 0:00:18]} 58. Kd5 {[%clk 0:00:01]}  Rf1 {[%clk 0:00:17]} 59. e6 {[%clk 0:00:01]}  Re1 {[%clk 0:00:17]} 0-1


[Site "https://www.chess.com"]